[Event "Titled Tuesday Blitz April 4 Early 2023"]
[White "Krysa, Leandro"]
[Black "Jaskolka, Tomasz"]
[WhiteFideId "116807"]
[BlackFideId "1170791"]
[WhiteElo "2489"]
[BlackElo "2155"]
[Result "0-1"]
[Round "10"]
[TimeControl "180+2"]
[Date "2023.04.04"]
[WhiteClock "0:00:01"]
[BlackClock "0:00:13"]

1. e4 {[%clk 0:03:00]}  c5 {[%clk 0:02:58]} 2. Nf3 {[%clk 0:03:00]}  e6 {[%clk 0:02:58]} 3. d4 {[%clk 0:03:00]}  cxd4 {[%clk 0:02:59]} 4. Nxd4 {[%clk 0:03:00]}  Nc6 {[%clk 0:02:59]} 5. Nc3 {[%clk 0:03:00]}  Qc7 {[%clk 0:02:59]} 6. g4 {[%clk 0:02:59]}  a6 {[%clk 0:02:58]} 7. Be3 {[%clk 0:02:55]}  h5 {[%clk 0:02:59]} 8. gxh5 {[%clk 0:02:47]}  Nf6 {[%clk 0:02:57]} 9. a3 {[%clk 0:02:33]}  b5 {[%clk 0:02:56]} 10. Nxc6 {[%clk 0:02:01]}  Qxc6 {[%clk 0:02:53]} 11. Bg2 {[%clk 0:02:01]}  Bb7 {[%clk 0:02:45]} 12. O-O {[%clk 0:01:55]}  Rxh5 {[%clk 0:02:43]} 13. f4 {[%clk 0:01:48]}  Bc5 {[%clk 0:02:41]} 14. Qe2 {[%clk 0:01:43]}  Bxe3+ {[%clk 0:02:34]} 15. Qxe3 {[%clk 0:01:43]}  Rxh2 {[%clk 0:02:34]} 16. Nd5 {[%clk 0:01:32]}  Rxg2+ {[%clk 0:02:27]} 17. Kxg2 {[%clk 0:01:31]}  Nxd5 {[%clk 0:02:08]} 18. exd5 {[%clk 0:01:29]}  Qxc2+ {[%clk 0:02:09]} 19. Rf2 {[%clk 0:01:21]}  Bxd5+ {[%clk 0:02:09]} 20. Kf1 {[%clk 0:01:20]}  Qc4+ {[%clk 0:01:59]} 21. Ke1 {[%clk 0:01:18]}  Rc8 {[%clk 0:01:57]} 22. Rd1 {[%clk 0:01:14]}  Qe4 {[%clk 0:01:50]} 23. Qxe4 {[%clk 0:01:10]}  Bxe4 {[%clk 0:01:50]} 24. Kd2 {[%clk 0:01:11]}  d5 {[%clk 0:01:44]} 25. Rc1 {[%clk 0:01:08]}  Rc4 {[%clk 0:01:26]} 26. Rxc4 {[%clk 0:00:54]}  bxc4 {[%clk 0:01:26]} 27. Rh2 {[%clk 0:00:54]}  d4 {[%clk 0:01:16]} 28. Rh5 {[%clk 0:00:39]}  Bd5 {[%clk 0:01:02]} 29. Rh7 {[%clk 0:00:27]}  g6 {[%clk 0:01:01]} 30. Rh8+ {[%clk 0:00:20]}  Ke7 {[%clk 0:01:01]} 31. Rb8 {[%clk 0:00:20]}  Kf6 {[%clk 0:00:40]} 32. Rb6 {[%clk 0:00:18]}  Kf5 {[%clk 0:00:40]} 33. Rxa6 {[%clk 0:00:18]}  Kxf4 {[%clk 0:00:41]} 34. Rd6 {[%clk 0:00:17]}  g5 {[%clk 0:00:38]} 35. a4 {[%clk 0:00:15]}  g4 {[%clk 0:00:38]} 36. a5 {[%clk 0:00:16]}  g3 {[%clk 0:00:37]} 37. Rd8 {[%clk 0:00:12]}  g2 {[%clk 0:00:19]} 38. Rg8 {[%clk 0:00:12]}  Bf3 {[%clk 0:00:20]} 39. Ke1 {[%clk 0:00:06]}  Ke3 {[%clk 0:00:13]} 40. a6 {[%clk 0:00:02]}  d3 {[%clk 0:00:14]} 41. Rxg2 {[%clk 0:00:01]}  Bxg2 {[%clk 0:00:14]} 42. Kd1 {[%clk 0:00:02]}  Bf3+ {[%clk 0:00:13]} 43. Kc1 {[%clk 0:00:01]}  d2+ {[%clk 0:00:13]} 0-1


[Site "https://www.chess.com"]

[Event "Titled Tuesday Blitz April 4 Early 2023"]
[White "Przybylski, Wojciech"]
[Black "Florescu, Codrut-Constantin"]
[WhiteFideId "1117599"]
[BlackFideId "1202200"]
[WhiteElo "2222"]
[BlackElo "2191"]
[Result "0-1"]
[Round "10"]
[TimeControl "180+2"]
[Date "2023.04.04"]
[WhiteClock "0:01:41"]
[BlackClock "0:02:10"]

1. e4 {[%clk 0:02:59]}  c5 {[%clk 0:02:59]} 2. Nf3 {[%clk 0:02:59]}  e6 {[%clk 0:02:59]} 3. b3 {[%clk 0:02:58]}  a6 {[%clk 0:02:59]} 4. Bb2 {[%clk 0:02:58]}  Nc6 {[%clk 0:03:00]} 5. d4 {[%clk 0:02:57]}  cxd4 {[%clk 0:02:59]} 6. Nxd4 {[%clk 0:02:57]}  Qf6 {[%clk 0:02:59]} 7. c3 {[%clk 0:02:58]}  Bc5 {[%clk 0:02:59]} 8. Be2 {[%clk 0:02:54]}  e5 {[%clk 0:02:59]} 9. Nf3 {[%clk 0:02:54]}  d6 {[%clk 0:02:59]} 10. O-O {[%clk 0:02:53]}  Nge7 {[%clk 0:02:58]} 11. Nbd2 {[%clk 0:02:53]}  Ng6 {[%clk 0:02:56]} 12. g3 {[%clk 0:02:51]}  O-O {[%clk 0:02:55]} 13. Nc4 {[%clk 0:02:50]}  Bh3 {[%clk 0:02:52]} 14. Re1 {[%clk 0:02:47]}  Rad8 {[%clk 0:02:51]} 15. Ne3 {[%clk 0:02:45]}  Bxe3 {[%clk 0:02:47]} 16. fxe3 {[%clk 0:02:45]}  h5 {[%clk 0:02:42]} 17. Bf1 {[%clk 0:02:38]}  Bg4 {[%clk 0:02:39]} 18. Be2 {[%clk 0:02:37]}  h4 {[%clk 0:02:38]} 19. Nxh4 {[%clk 0:02:32]}  Bxe2 {[%clk 0:02:35]} 20. Qxe2 {[%clk 0:02:30]}  Nxh4 {[%clk 0:02:35]} 21. gxh4 {[%clk 0:02:27]}  Qxh4 {[%clk 0:02:36]} 22. Qg2 {[%clk 0:02:22]}  f5 {[%clk 0:02:35]} 23. exf5 {[%clk 0:02:19]}  Rxf5 {[%clk 0:02:33]} 24. Qd5+ {[%clk 0:02:13]}  Kh8 {[%clk 0:02:31]} 25. Re2 {[%clk 0:02:13]}  Rdf8 {[%clk 0:02:29]} 26. Qd2 {[%clk 0:02:08]}  Qf6 {[%clk 0:02:13]} 27. Qe1 {[%clk 0:01:56]}  e4 {[%clk 0:02:12]} 28. c4 {[%clk 0:01:50]}  Rg5+ {[%clk 0:02:12]} 29. Qg3 {[%clk 0:01:41]}  Rxg3+ {[%clk 0:02:10]} 30. hxg3 {[%clk 0:01:41]}  Ne5 {[%clk 0:02:10]} 0-1


[Site "https://www.chess.com"]

[Event "Titled Tuesday Blitz April 4 Early 2023"]
[White "Shubenkova, Veronika"]
[Black "Taboas Rodriguez, Daniel"]
[WhiteFideId "44124040"]
[BlackFideId "2208466"]
[WhiteElo "2027"]
[BlackElo "2365"]
[Result "1-0"]
[Round "10"]
[TimeControl "180+2"]
[Date "2023.04.04"]
[WhiteClock "0:01:58"]
[BlackClock "0:01:30"]

1. e4 {[%clk 0:03:00]}  e5 {[%clk 0:02:59]} 2. Nf3 {[%clk 0:03:00]}  Nc6 {[%clk 0:02:59]} 3. Bb5 {[%clk 0:03:00]}  Nf6 {[%clk 0:02:59]} 4. Bxc6 {[%clk 0:03:00]}  dxc6 {[%clk 0:02:58]} 5. O-O {[%clk 0:03:01]}  Bg4 {[%clk 0:02:44]} 6. d3 {[%clk 0:03:01]}  Nd7 {[%clk 0:02:44]} 7. Be3 {[%clk 0:03:01]}  Bd6 {[%clk 0:02:39]} 8. Nbd2 {[%clk 0:03:01]}  Qe7 {[%clk 0:02:38]} 9. c3 {[%clk 0:02:59]}  c5 {[%clk 0:02:37]} 10. Qc2 {[%clk 0:02:58]}  O-O {[%clk 0:02:34]} 11. Rae1 {[%clk 0:02:53]}  f5 {[%clk 0:02:31]} 12. exf5 {[%clk 0:02:52]}  Rxf5 {[%clk 0:02:32]} 13. d4 {[%clk 0:02:47]}  exd4 {[%clk 0:02:08]} 14. cxd4 {[%clk 0:02:37]}  Rxf3 {[%clk 0:02:07]} 15. Nxf3 {[%clk 0:02:31]}  Bxf3 {[%clk 0:02:07]} 16. gxf3 {[%clk 0:02:30]}  Qh4 {[%clk 0:02:04]} 17. f4 {[%clk 0:02:25]}  cxd4 {[%clk 0:01:57]} 18. Qc4+ {[%clk 0:02:23]}  Kh8 {[%clk 0:01:56]} 19. Qxd4 {[%clk 0:02:22]}  Nf6 {[%clk 0:01:56]} 20. f3 {[%clk 0:02:16]}  b6 {[%clk 0:01:42]} 21. b4 {[%clk 0:02:06]}  Nh5 {[%clk 0:01:39]} 22. Bf2 {[%clk 0:02:02]}  Qh3 {[%clk 0:01:37]} 23. Qe4 {[%clk 0:01:59]}  Nxf4 {[%clk 0:01:30]} 24. Qxa8+ {[%clk 0:01:58]} 1-0


[Site "https://www.chess.com"]

[Event "Titled Tuesday Blitz April 4 Early 2023"]
[White "Bowden, Karl"]
[Black "Berezin, Viktor"]
[WhiteFideId "400548"]
[BlackFideId "14107872"]
[WhiteElo "2459"]
[BlackElo "2310"]
[Result "1-0"]
[Round "10"]
[TimeControl "180+2"]
[Date "2023.04.04"]
[WhiteClock "0:01:13"]
[BlackClock "0:01:17"]

1. e4 {[%clk 0:02:59]}  g6 {[%clk 0:03:00]} 2. d4 {[%clk 0:02:59]}  Bg7 {[%clk 0:03:00]} 3. c3 {[%clk 0:03:00]}  d6 {[%clk 0:03:00]} 4. f4 {[%clk 0:02:59]}  Nf6 {[%clk 0:03:00]} 5. Bd3 {[%clk 0:02:59]}  c5 {[%clk 0:03:00]} 6. dxc5 {[%clk 0:02:59]}  dxc5 {[%clk 0:02:57]} 7. e5 {[%clk 0:03:00]}  Nd5 {[%clk 0:02:56]} 8. Be4 {[%clk 0:03:00]}  Nc7 {[%clk 0:02:48]} 9. Qxd8+ {[%clk 0:02:58]}  Kxd8 {[%clk 0:02:49]} 10. Be3 {[%clk 0:02:57]}  Ne6 {[%clk 0:02:44]} 11. Nd2 {[%clk 0:02:55]}  Kc7 {[%clk 0:02:44]} 12. Nb3 {[%clk 0:02:41]}  Na6 {[%clk 0:02:42]} 13. O-O-O {[%clk 0:02:38]}  Rb8 {[%clk 0:02:37]} 14. Na5 {[%clk 0:02:10]}  Re8 {[%clk 0:01:55]} 15. Nf3 {[%clk 0:02:05]}  f5 {[%clk 0:01:54]} 16. exf6 {[%clk 0:01:51]}  exf6 {[%clk 0:01:54]} 17. f5 {[%clk 0:01:49]}  gxf5 {[%clk 0:01:51]} 18. Bxf5 {[%clk 0:01:49]}  b6 {[%clk 0:01:49]} 19. Bxe6 {[%clk 0:01:44]}  bxa5 {[%clk 0:01:36]} 20. Bf4+ {[%clk 0:01:44]}  Kb7 {[%clk 0:01:32]} 21. Bxc8+ {[%clk 0:01:34]}  Kxc8 {[%clk 0:01:23]} 22. Bxb8 {[%clk 0:01:29]}  Bh6+ {[%clk 0:01:23]} 23. Kc2 {[%clk 0:01:27]}  Nxb8 {[%clk 0:01:24]} 24. Rhe1 {[%clk 0:01:27]}  Rg8 {[%clk 0:01:23]} 25. g3 {[%clk 0:01:26]}  Nd7 {[%clk 0:01:19]} 26. Re7 {[%clk 0:01:25]}  Nb6 {[%clk 0:01:17]} 27. Rxh7 {[%clk 0:01:23]}  Be3 {[%clk 0:01:17]} 28. Re7 {[%clk 0:01:13]} 1-0


[Site "https://www.chess.com"]

[Event "Titled Tuesday Blitz April 4 Early 2023"]
[White "Castellanos Villela, Alejandro"]
[Black "Moral Garcia, Serafin"]
[WhiteFideId "3446379"]
[BlackFideId "2201925"]
[WhiteElo "2103"]
[BlackElo "2274"]
[Result "0-1"]
[Round "10"]
[TimeControl "180+2"]
[Date "2023.04.04"]
[WhiteClock "0:00:02"]
[BlackClock "0:00:19"]

1. e4 {[%clk 0:03:00]}  e5 {[%clk 0:02:59]} 2. Nf3 {[%clk 0:02:58]}  Nc6 {[%clk 0:03:00]} 3. Bc4 {[%clk 0:02:59]}  Bc5 {[%clk 0:02:59]} 4. O-O {[%clk 0:02:58]}  Nf6 {[%clk 0:02:59]} 5. d3 {[%clk 0:02:58]}  a6 {[%clk 0:02:59]} 6. Nc3 {[%clk 0:02:57]}  h6 {[%clk 0:02:58]} 7. a3 {[%clk 0:02:57]}  Ba7 {[%clk 0:02:55]} 8. Nd5 {[%clk 0:02:54]}  d6 {[%clk 0:02:55]} 9. c3 {[%clk 0:02:48]}  O-O {[%clk 0:02:50]} 10. h3 {[%clk 0:02:46]}  Nxd5 {[%clk 0:02:49]} 11. exd5 {[%clk 0:02:44]}  Ne7 {[%clk 0:02:49]} 12. d4 {[%clk 0:02:45]}  exd4 {[%clk 0:02:49]} 13. Nxd4 {[%clk 0:02:46]}  Ng6 {[%clk 0:02:49]} 14. Bd3 {[%clk 0:02:42]}  Qf6 {[%clk 0:02:48]} 15. Be3 {[%clk 0:02:39]}  Nf4 {[%clk 0:02:43]} 16. Bc2 {[%clk 0:02:30]}  Nxd5 {[%clk 0:02:42]} 17. Qd3 {[%clk 0:02:17]}  g6 {[%clk 0:02:38]} 18. Bxh6 {[%clk 0:02:16]}  Re8 {[%clk 0:02:38]} 19. Rae1 {[%clk 0:02:14]}  Bd7 {[%clk 0:02:34]} 20. Qd2 {[%clk 0:02:10]}  Bxd4 {[%clk 0:02:28]} 21. cxd4 {[%clk 0:02:06]}  Bb5 {[%clk 0:02:24]} 22. Rxe8+ {[%clk 0:02:03]}  Rxe8 {[%clk 0:02:22]} 23. Bg5 {[%clk 0:01:43]}  Qh8 {[%clk 0:02:21]} 24. Re1 {[%clk 0:01:42]}  Rxe1+ {[%clk 0:02:19]} 25. Qxe1 {[%clk 0:01:43]}  Qxd4 {[%clk 0:02:17]} 26. Bb3 {[%clk 0:01:36]}  Bc4 {[%clk 0:02:10]} 27. Qe8+ {[%clk 0:01:21]}  Kg7 {[%clk 0:02:09]} 28. Bxc4 {[%clk 0:01:18]}  Qxc4 {[%clk 0:02:07]} 29. Qc8 {[%clk 0:01:16]}  Qc6 {[%clk 0:01:57]} 30. Kh2 {[%clk 0:01:13]}  a5 {[%clk 0:01:54]} 31. h4 {[%clk 0:01:09]}  a4 {[%clk 0:01:51]} 32. h5 {[%clk 0:00:44]}  gxh5 {[%clk 0:01:49]} 33. Qf5 {[%clk 0:00:45]}  Qc4 {[%clk 0:01:41]} 34. Bd2 {[%clk 0:00:40]}  Qh4+ {[%clk 0:00:57]} 35. Kg1 {[%clk 0:00:38]}  c6 {[%clk 0:00:58]} 36. g3 {[%clk 0:00:29]}  Qg4 {[%clk 0:00:56]} 37. Qd3 {[%clk 0:00:24]}  h4 {[%clk 0:00:54]} 38. Kh2 {[%clk 0:00:17]}  hxg3+ {[%clk 0:00:53]} 39. fxg3 {[%clk 0:00:18]}  b5 {[%clk 0:00:53]} 40. Be1 {[%clk 0:00:09]}  Kf8 {[%clk 0:00:50]} 41. Bb4 {[%clk 0:00:08]}  Ke7 {[%clk 0:00:45]} 42. Bd2 {[%clk 0:00:05]}  Qc4 {[%clk 0:00:36]} 43. Qf5 {[%clk 0:00:04]}  Qd4 {[%clk 0:00:33]} 44. Bg5+ {[%clk 0:00:03]}  Kf8 {[%clk 0:00:29]} 45. Qc8+ {[%clk 0:00:02]}  Kg7 {[%clk 0:00:30]} 46. Qd8 {[%clk 0:00:02]}  Qxb2+ {[%clk 0:00:29]} 47. Kh3 {[%clk 0:00:03]}  Qe5 {[%clk 0:00:29]} 48. Bh4 {[%clk 0:00:03]}  c5 {[%clk 0:00:28]} 49. Qb8 {[%clk 0:00:03]}  b4 {[%clk 0:00:27]} 50. axb4 {[%clk 0:00:02]}  cxb4 {[%clk 0:00:27]} 51. Qa8 {[%clk 0:00:02]}  a3 {[%clk 0:00:27]} 52. Qa4 {[%clk 0:00:02]}  Qe6+ {[%clk 0:00:25]} 53. Kh2 {[%clk 0:00:02]}  Qe4 {[%clk 0:00:25]} 54. Qd1 {[%clk 0:00:01]}  a2 {[%clk 0:00:24]} 55. Qh5 {[%clk 0:00:02]}  a1=Q {[%clk 0:00:20]} 56. Qg5+ {[%clk 0:00:02]}  Qg6 {[%clk 0:00:20]} 57. Qxd5 {[%clk 0:00:02]}  Qe5 {[%clk 0:00:20]} 58. Qb3 {[%clk 0:00:02]}  Qc3 {[%clk 0:00:19]} 59. Qd5 {[%clk 0:00:02]}  b3 {[%clk 0:00:19]} 0-1


[Site "https://www.chess.com"]

[Event "Titled Tuesday Blitz April 4 Early 2023"]
[White "Chandreyee, Hajra"]
[Black "Budrewicz, Krzysztof"]
[WhiteFideId "5056535"]
[BlackFideId "1127950"]
[WhiteElo "1725"]
[BlackElo "2230"]
[Result "1-0"]
[Round "10"]
[TimeControl "180+2"]
[Date "2023.04.04"]
[WhiteClock "0:00:33"]
[BlackClock "0:00:59"]

1. e4 {[%clk 0:03:00]}  g6 {[%clk 0:02:57]} 2. d4 {[%clk 0:03:00]}  Bg7 {[%clk 0:02:58]} 3. Nc3 {[%clk 0:03:00]}  d6 {[%clk 0:02:57]} 4. Nf3 {[%clk 0:02:58]}  a6 {[%clk 0:02:57]} 5. Bg5 {[%clk 0:02:58]}  h6 {[%clk 0:02:57]} 6. Bh4 {[%clk 0:02:57]}  b5 {[%clk 0:02:57]} 7. a3 {[%clk 0:02:57]}  Bb7 {[%clk 0:02:57]} 8. Bd3 {[%clk 0:02:57]}  Nd7 {[%clk 0:02:57]} 9. Qe2 {[%clk 0:02:56]}  g5 {[%clk 0:02:56]} 10. Bg3 {[%clk 0:02:56]}  e6 {[%clk 0:02:57]} 11. h3 {[%clk 0:02:54]}  Ne7 {[%clk 0:02:56]} 12. e5 {[%clk 0:02:49]}  Bxf3 {[%clk 0:02:48]} 13. gxf3 {[%clk 0:02:46]}  dxe5 {[%clk 0:02:46]} 14. dxe5 {[%clk 0:02:46]}  Ng6 {[%clk 0:02:45]} 15. Bxg6 {[%clk 0:02:43]}  fxg6 {[%clk 0:02:45]} 16. O-O-O {[%clk 0:02:40]}  Qe7 {[%clk 0:02:43]} 17. Qe4 {[%clk 0:02:39]}  O-O {[%clk 0:02:41]} 18. h4 {[%clk 0:02:38]}  Rad8 {[%clk 0:02:30]} 19. Qxg6 {[%clk 0:02:31]}  Qf7 {[%clk 0:02:30]} 20. Qxf7+ {[%clk 0:02:23]}  Kxf7 {[%clk 0:02:30]} 21. hxg5 {[%clk 0:02:23]}  hxg5 {[%clk 0:02:30]} 22. Ne4 {[%clk 0:02:20]}  Kg6 {[%clk 0:02:29]} 23. Rhg1 {[%clk 0:02:14]}  Kf5 {[%clk 0:01:59]} 24. Rd4 {[%clk 0:02:03]}  Nb6 {[%clk 0:01:52]} 25. Rxd8 {[%clk 0:01:51]}  Rxd8 {[%clk 0:01:52]} 26. Bh2 {[%clk 0:01:44]}  Bh6 {[%clk 0:01:51]} 27. Nf6 {[%clk 0:01:39]}  Nd5 {[%clk 0:01:47]} 28. Ng4 {[%clk 0:01:38]}  Bg7 {[%clk 0:01:46]} 29. Ne3+ {[%clk 0:01:36]}  Nxe3 {[%clk 0:01:41]} 30. fxe3 {[%clk 0:01:36]}  Rh8 {[%clk 0:01:41]} 31. e4+ {[%clk 0:01:35]}  Kg6 {[%clk 0:01:41]} 32. Bf4 {[%clk 0:01:35]}  Bh6 {[%clk 0:01:41]} 33. Bxg5 {[%clk 0:01:31]}  Bxg5+ {[%clk 0:01:37]} 34. f4 {[%clk 0:01:31]}  Rh5 {[%clk 0:01:37]} 35. Kd2 {[%clk 0:01:29]}  c5 {[%clk 0:01:26]} 36. c4 {[%clk 0:01:24]}  Rh2+ {[%clk 0:01:14]} 37. Kc3 {[%clk 0:01:16]}  Rh3+ {[%clk 0:01:14]} 38. Kc2 {[%clk 0:01:16]}  Rh2+ {[%clk 0:01:14]} 39. Kc1 {[%clk 0:01:10]}  Rh5 {[%clk 0:01:12]} 40. cxb5 {[%clk 0:01:06]}  axb5 {[%clk 0:01:12]} 41. b3 {[%clk 0:00:55]}  Kf7 {[%clk 0:01:12]} 42. fxg5 {[%clk 0:00:51]}  Rh4 {[%clk 0:01:12]} 43. Rf1+ {[%clk 0:00:48]}  Ke7 {[%clk 0:01:08]} 44. g6 {[%clk 0:00:48]}  Rxe4 {[%clk 0:01:05]} 45. Rf7+ {[%clk 0:00:48]}  Ke8 {[%clk 0:01:05]} 46. Rc7 {[%clk 0:00:46]}  Rxe5 {[%clk 0:00:58]} 47. g7 {[%clk 0:00:46]}  Rg5 {[%clk 0:00:58]} 48. Rc8+ {[%clk 0:00:33]}  Kf7 {[%clk 0:00:58]} 49. g8=Q+ {[%clk 0:00:32]}  Rxg8 {[%clk 0:00:58]} 50. Rxg8 {[%clk 0:00:33]}  Kxg8 {[%clk 0:00:59]} 51. a4 {[%clk 0:00:33]}  Kf7 {[%clk 0:00:58]} 52. a5 {[%clk 0:00:32]}  Ke7 {[%clk 0:00:58]} 53. a6 {[%clk 0:00:32]}  Kd7 {[%clk 0:00:58]} 54. a7 {[%clk 0:00:33]}  Kc7 {[%clk 0:00:59]} 1-0


[Site "https://www.chess.com"]

[Event "Titled Tuesday Blitz April 4 Early 2023"]
[White "Lach, Aleksandra"]
[Black "Sharapov, Evgeny"]
[WhiteFideId "1134299"]
[BlackFideId "14103133"]
[WhiteElo "2111"]
[BlackElo "2367"]
[Result "0-1"]
[Round "10"]
[TimeControl "180+2"]
[Date "2023.04.04"]
[WhiteClock "0:00:09"]
[BlackClock "0:00:30"]

1. e4 {[%clk 0:02:59]}  c5 {[%clk 0:02:59]} 2. Nc3 {[%clk 0:02:59]}  Nc6 {[%clk 0:02:59]} 3. Bb5 {[%clk 0:02:58]}  Nd4 {[%clk 0:02:57]} 4. Nf3 {[%clk 0:02:58]}  a6 {[%clk 0:02:57]} 5. Bd3 {[%clk 0:02:58]}  Nc6 {[%clk 0:02:57]} 6. O-O {[%clk 0:02:57]}  e5 {[%clk 0:02:56]} 7. a4 {[%clk 0:02:54]}  Be7 {[%clk 0:02:56]} 8. Bc4 {[%clk 0:02:54]}  Nf6 {[%clk 0:02:56]} 9. d3 {[%clk 0:02:34]}  O-O {[%clk 0:02:56]} 10. h3 {[%clk 0:02:34]}  d6 {[%clk 0:02:56]} 11. Be3 {[%clk 0:02:28]}  Nd4 {[%clk 0:02:55]} 12. Bxd4 {[%clk 0:02:27]}  cxd4 {[%clk 0:02:55]} 13. Nd5 {[%clk 0:02:27]}  Nxd5 {[%clk 0:02:55]} 14. Bxd5 {[%clk 0:02:27]}  Kh8 {[%clk 0:02:52]} 15. c3 {[%clk 0:02:24]}  dxc3 {[%clk 0:02:52]} 16. bxc3 {[%clk 0:02:24]}  f5 {[%clk 0:02:51]} 17. exf5 {[%clk 0:02:22]}  Rxf5 {[%clk 0:02:49]} 18. a5 {[%clk 0:02:19]}  Qc7 {[%clk 0:02:43]} 19. c4 {[%clk 0:02:12]}  Bd7 {[%clk 0:02:41]} 20. Nd2 {[%clk 0:02:00]}  Bc6 {[%clk 0:02:39]} 21. Be4 {[%clk 0:02:00]}  Rf4 {[%clk 0:02:33]} 22. g3 {[%clk 0:01:58]}  Rff8 {[%clk 0:02:27]} 23. Qh5 {[%clk 0:01:58]}  Bxe4 {[%clk 0:02:25]} 24. Nxe4 {[%clk 0:01:59]}  g6 {[%clk 0:02:20]} 25. Qg4 {[%clk 0:01:57]}  Qc8 {[%clk 0:02:12]} 26. Qxc8 {[%clk 0:01:56]}  Raxc8 {[%clk 0:02:12]} 27. Rab1 {[%clk 0:01:56]}  Rc7 {[%clk 0:02:03]} 28. Nc3 {[%clk 0:01:56]}  Rd7 {[%clk 0:02:03]} 29. Nd5 {[%clk 0:01:51]}  Bd8 {[%clk 0:02:03]} 30. Ra1 {[%clk 0:01:48]}  Kg7 {[%clk 0:01:55]} 31. Kg2 {[%clk 0:01:47]}  Kf7 {[%clk 0:01:49]} 32. f4 {[%clk 0:01:45]}  Ke6 {[%clk 0:01:47]} 33. Rfe1 {[%clk 0:01:43]}  Re8 {[%clk 0:01:29]} 34. fxe5 {[%clk 0:01:22]}  dxe5 {[%clk 0:01:28]} 35. d4 {[%clk 0:01:21]}  Kd6 {[%clk 0:01:09]} 36. Ra2 {[%clk 0:01:03]}  Re6 {[%clk 0:01:03]} 37. dxe5+ {[%clk 0:00:32]}  Rxe5 {[%clk 0:01:03]} 38. Rd1 {[%clk 0:00:18]}  Kc5 {[%clk 0:01:01]} 39. Rdd2 {[%clk 0:00:11]}  Re4 {[%clk 0:00:52]} 40. h4 {[%clk 0:00:10]}  Rxc4 {[%clk 0:00:49]} 41. Nf4 {[%clk 0:00:07]}  Rxd2+ {[%clk 0:00:46]} 42. Rxd2 {[%clk 0:00:08]}  Bxa5 {[%clk 0:00:44]} 43. Rd7 {[%clk 0:00:09]}  b5 {[%clk 0:00:30]} 0-1


[Site "https://www.chess.com"]

[Event "Titled Tuesday Blitz April 4 Early 2023"]
[White "Padmini, Rout"]
[Black "Garrido, Denis"]
[WhiteFideId "5029295"]
[BlackFideId "601217"]
[WhiteElo "2314"]
[BlackElo "2370"]
[Result "1-0"]
[Round "10"]
[TimeControl "180+2"]
[Date "2023.04.04"]
[WhiteClock "0:00:21"]
[BlackClock "0:00:15"]

1. e4 {[%clk 0:03:00]}  e5 {[%clk 0:02:59]} 2. Nf3 {[%clk 0:03:00]}  Nc6 {[%clk 0:03:00]} 3. Bc4 {[%clk 0:02:59]}  Nf6 {[%clk 0:02:59]} 4. O-O {[%clk 0:02:58]}  Nxe4 {[%clk 0:02:58]} 5. Re1 {[%clk 0:02:49]}  d5 {[%clk 0:02:58]} 6. Bb5 {[%clk 0:02:48]}  Bc5 {[%clk 0:02:31]} 7. d4 {[%clk 0:02:35]}  exd4 {[%clk 0:02:19]} 8. Nbd2 {[%clk 0:02:12]}  O-O {[%clk 0:02:15]} 9. Nxe4 {[%clk 0:02:11]}  dxe4 {[%clk 0:02:15]} 10. Ng5 {[%clk 0:02:12]}  e3 {[%clk 0:01:50]} 11. Qh5 {[%clk 0:02:05]}  exf2+ {[%clk 0:01:46]} 12. Kxf2 {[%clk 0:02:03]}  h6 {[%clk 0:01:37]} 13. Ne4 {[%clk 0:01:50]}  Bb6 {[%clk 0:01:28]} 14. Bxh6 {[%clk 0:01:49]}  gxh6 {[%clk 0:01:06]} 15. Qxh6 {[%clk 0:01:49]}  d3+ {[%clk 0:01:06]} 16. Kf1 {[%clk 0:01:22]}  Bd4 {[%clk 0:00:56]} 17. Re3 {[%clk 0:01:18]}  Bg4 {[%clk 0:00:44]} 18. Rg3 {[%clk 0:01:08]}  f5 {[%clk 0:00:44]} 19. Bc4+ {[%clk 0:01:00]}  Rf7 {[%clk 0:00:33]} 20. Rxg4+ {[%clk 0:00:23]}  fxg4+ {[%clk 0:00:31]} 21. Bxf7+ {[%clk 0:00:22]}  Kxf7 {[%clk 0:00:32]} 22. Ng5+ {[%clk 0:00:22]}  Ke7 {[%clk 0:00:15]} 23. Qe6+ {[%clk 0:00:21]} 1-0


[Site "https://www.chess.com"]

[Event "Titled Tuesday Blitz April 4 Early 2023"]
[White "Pranav Anand"]
[Black "Fajdetic, Hrvoje"]
[WhiteFideId "46626786"]
[BlackFideId "14501945"]
[WhiteElo "2389"]
[BlackElo "2185"]
[Result "1-0"]
[Round "10"]
[TimeControl "180+2"]
[Date "2023.04.04"]
[WhiteClock "0:01:23"]
[BlackClock "0:00:05"]

1. Nf3 {[%clk 0:03:00]}  f5 {[%clk 0:02:42]} 2. g3 {[%clk 0:03:01]}  d6 {[%clk 0:02:41]} 3. Bg2 {[%clk 0:03:01]}  e5 {[%clk 0:02:41]} 4. d3 {[%clk 0:03:02]}  Nf6 {[%clk 0:02:42]} 5. O-O {[%clk 0:03:02]}  Be7 {[%clk 0:02:42]} 6. c4 {[%clk 0:03:03]}  O-O {[%clk 0:02:43]} 7. Nc3 {[%clk 0:03:03]}  Qe8 {[%clk 0:02:42]} 8. Rb1 {[%clk 0:02:59]}  a5 {[%clk 0:02:42]} 9. a3 {[%clk 0:02:59]}  Qh5 {[%clk 0:02:41]} 10. b4 {[%clk 0:03:00]}  axb4 {[%clk 0:02:38]} 11. axb4 {[%clk 0:03:01]}  Nc6 {[%clk 0:02:30]} 12. b5 {[%clk 0:02:59]}  Nd8 {[%clk 0:02:31]} 13. Qc2 {[%clk 0:02:55]}  Nf7 {[%clk 0:02:22]} 14. Nd5 {[%clk 0:02:54]}  Bd8 {[%clk 0:02:20]} 15. Bd2 {[%clk 0:02:39]}  Nxd5 {[%clk 0:01:55]} 16. cxd5 {[%clk 0:02:39]}  g5 {[%clk 0:01:54]} 17. Bc3 {[%clk 0:02:29]}  f4 {[%clk 0:01:43]} 18. d4 {[%clk 0:02:19]}  g4 {[%clk 0:01:38]} 19. Nd2 {[%clk 0:02:20]}  Ng5 {[%clk 0:01:29]} 20. dxe5 {[%clk 0:02:18]}  f3 {[%clk 0:01:30]} 21. e6 {[%clk 0:02:09]}  fxg2 {[%clk 0:01:25]} 22. Kxg2 {[%clk 0:02:10]}  c6 {[%clk 0:00:27]} 23. bxc6 {[%clk 0:01:29]}  bxc6 {[%clk 0:00:28]} 24. dxc6 {[%clk 0:01:29]}  Bxe6 {[%clk 0:00:27]} 25. Qd3 {[%clk 0:01:30]}  Ra2 {[%clk 0:00:18]} 26. Qxd6 {[%clk 0:01:25]}  Bf7 {[%clk 0:00:05]} 27. Qd4 {[%clk 0:01:23]} 1-0


[Site "https://www.chess.com"]